Cogmind - Beta 15 @@@ ROGUE MODE // 2025.08.25 @ 23:03:09 Player: Reflectatory Result: Destroyed by RX-XLD(R) with Subdweller Beam Cannon Performance ------------- Evolutions (0) 0 Regions Visited (2) 400 Robots Destroyed (12) 60 Value Destroyed (250) 250 Prototype IDs (0) 0 Alien Tech Used (0) 0 Bonus (0) 0 TOTAL SCORE: 710 Bonus ------- None Cogmind --------- Core Integrity 0/250 Matter 248/300 Energy 250/250 System Corruption 1% Temperature Cool (9) Movement Walking (120) Location -10/Subcaves Parts ------- > --- POWER (1) -------- Ion Engine > --- PROPULSION (2) --- Aluminum Leg > --- UTILITY (2) ------ Structural Scanner Seismic Detector > --- WEAPON (2) ------- Assault Rifle Light Assault Rifle > --- INVENTORY (5) ---- Ion Engine Light Ion Engine Hover Unit Flight Unit Small Storage Unit Peak State ------------ > --- POWER ------------ Light Ion Engine > --- PROPULSION ------- Aluminum Leg Aluminum Leg > --- UTILITY ---------- Small Storage Unit Seismic Detector > --- WEAPON ----------- Medium Laser Medium Laser > --- INVENTORY -------- Light Ion Engine Assault Rifle [Rating: 7] Favorites ----------- Power Light Ion Engine Engine Light Ion Engine Propulsion Aluminum Leg Leg Aluminum Leg Flight Unit Flight Unit Utility Seismic Detector Device Seismic Detector Storage Small Storage Unit Weapon Medium Laser Energy Gun Medium Laser Ballistic Gun Assault Rifle Build | -11 -10 -10 ------- Run | Yrd Mat Sub Slots Evolved . | . . . Power . | . . . Propulsion . | . . . Utility . | . . . Weapon . | . . . Parts Attached 19 | 7 12 . Power 5 | 1 4 . Engine 5 | 1 4 . Core . | . . . Reactor . | . . . Propulsion 7 | 2 5 . Treads . | . . . Leg 6 | 2 4 . Wheel . | . . . Hover . | . . . Flight 1 | . 1 . Utility 3 | 1 2 . Device 2 | . 2 . Storage 1 | 1 . . Processor . | . . . Hackware . | . . . Protection . | . . . Artifact . | . . . Weapon 4 | 3 1 . Energy Gun 2 | 2 . . Energy Cannon . | . . . Ballistic Gun 2 | 1 1 . Ballistic Cannon . | . . . Launcher . | . . . Special Weapon . | . . . Impact Weapon . | . . . Slashing Weapon . | . . . Piercing Weapon . | . . . Special Melee Weapon . | . . . Unidentified Prototypes . | . . . Parts Lost 6 | . 5 1 Power 1 | . 1 . Propulsion 3 | . 2 1 Utility . | . . . Weapon 2 | . 2 . Highest Loss Streak 3 | . 3 1 To Critical Strikes . | . . . Average Backups 3 | . 3 5 Power 1 | . 1 2 Propulsion . | . . 2 Utility . | . . 1 Weapon . | . . . Tool/Special . | . . . Unused Backups 1 | . . 1 Power . | . . . Propulsion 1 | . . 1 Utility . | . . . Weapon . | . . . Tool/Special . | . . . Average Slot Usage (%) 93 | . 90 100 Engine 13 | . 13 14 Leg 27 | . 27 28 Device 19 | . 14 28 Storage 4 | . 7 . Energy Gun 15 | . 24 . Ballistic Gun 10 | . 2 28 Peak Build Rating 7 | 6 7 7 Average Rating 6 | 4 6 7 On Entrance 4 | . 6 7 Naked Turns . | . . . Heaviest Build 13 | 12 13 10 Greatest Support 20 | 20 20 20 Greatest Overweight (x) 1 | . 1 . Average Overweight (x) . | . . . Largest Inventory Capacity 8 | 8 8 5 Average Capacity 6 | 7 6 5 Most Carried 5 | 2 5 5 Average Carried 3 | 1 3 5 Final Capacity 8 | 8 5 5 Final Carried 5 | 2 5 5 Class Distribution -------------------- 64% | Mutant 35% | Scavenger-Mutant Dominant Class ---------------- Mutant | -10/Materials Scavenger-Mutant | -10/Subcaves Resources | -11 -10 -10 ----------- Run | Yrd Mat Sub Matter Collected 447 | 191 209 47 Remotely . | . . . Salvage Created 311 | . 264 47 Parts 17 | . 12 5 Haulers Intercepted . | . . . Recyclers Shooed . | . . . Parts Field Recycled . | . . . Retrieved Matter . | . . . Parts Self-Destructed 10 | . . 10 Prevented . | . . . Kills | -11 -10 -10 ------- Run | Yrd Mat Sub Combat Hostiles Destroyed 11 | . 8 3 Guns 11 | . 8 3 Classes Destroyed 3 | . 3 . Tunneler 1 | . 1 . Swarmer 6 | . 3 3 Grunt 5 | . 5 . Best Kill Streak 4 | . 4 2 Combat Bots Only 4 | . 4 2 Max Kills in Single Turn 1 | . 1 1 Gunslinging . | . . . Exploded . | . . . Melee . | . . . Uniques/NPCs Destroyed . | . . . Combat | -11 -10 -10 -------- Run | Yrd Mat Sub Hostile Shots Fired 120 | . 91 29 Missed 26 | . 16 10 Hits 94 | . 75 19 Projectile 94 | . 75 19 Damage Taken 1041 | . 771 270 Core 256 | . 195 61 Absorbed by Shields . | . . . Core Remaining (%) 100 | 100 . . Volleys Fired 54 | . 34 20 Largest 2 | . 2 2 Hottest 100 | . 100 40 Shots Fired 86 | . 46 40 Gun 86 | . 46 40 Cannon . | . . . Launcher . | . . . Special . | . . . Kinetic 47 | . 7 40 Thermal 39 | . 39 . Explosive . | . . . Electromagnetic . | . . . Robot Hit Streak 5 | . 5 5 Robot Miss Streak 9 | . 6 9 Penetration Max . | . . . Secondary Targets 1 | . 1 . Max Gunslinging Chain 1 | . 1 . Shots Hit Robots 28 | . 20 8 Core Hits 19 | . 16 3 Critical Kills . | . . . Critical Parts Destroyed . | . . . Critical Strikes 3 | . 3 . Burn 3 | . 3 . Melee Attacks . | . . . Impact . | . . . Slashing . | . . . Piercing . | . . . Sneak Attacks . | . . . Combat Hostiles . | . . . Follow-up Attacks . | . . . Damage Inflicted 351 | . 276 75 Guns 331 | . 256 75 Cannons . | . . . Explosions . | . . . Melee . | . . . Ramming 20 | . 20 . Kinetic 130 | . 55 75 Thermal 201 | . 201 . Explosive . | . . . Electromagnetic . | . . . Impact . | . . . Slashing . | . . . Piercing . | . . . Highest Corruption 1 | . 1 1 Average Corruption 1 | . 1 1 Corruption Purged . | . . . Corruption Blocked . | . . . Effects 8 | . 6 2 Message Errors 3 | . 1 2 Matter Fused 2 | . 2 . Heat Flow Errors 1 | . 1 . Data Loss (minor) 1 | . 1 . Weapon Failures 1 | . 1 . Overload Shots . | . . . Overflow Damage . | . . . Projectiles . | . . . Explosions . | . . . Melee . | . . . Knockbacks . | . . . Impact . | . . . Kinetic . | . . . Secondary . | . . . Self-Inflicted Damage . | . . . Shots . | . . . Rammed . | . . . Targets Rammed 11 | . 11 . Kicked 11 | . 11 . Crushed . | . . . Highest Temperature 294 | . 294 . Average Temperature 102 | . 102 . Received Heat Transfer 219 | . 210 9 Effects 3 | . 3 . Interference 3 | . 3 . Siege Activations . | . . . Martial Activations . | . . . Shielding Activations . | . . . Robots Disrupted . | . . . Combat Hostiles . | . . . Robots Corrupted . | . . . Combat Hostiles . | . . . Parts Fried . | . . . Impact Corruptions . | . . . Robots Melted . | . . . Combat Hostiles . | . . . Parts Melted 2 | . 2 . Heat Transferred 814 | . 814 . Parts Sabotaged . | . . . Parts Stolen . | . . . Parts Stripped . | . . . Power Chain Reactions . | . . . Alert | -11 -10 -10 ------- Run | Yrd Mat Sub Maximum Alert Level . | . . . Low Security (%) 100 | 100 100 . Level 1 . | . . . Level 2 . | . . . Level 3 . | . . . Level 4 . | . . . Level 5 . | . . . High Security . | . . . Max Security . | . . . Peak Influence 87 | . 87 . Initial . | . . . Average 12 | . 13 . Influence Increases 292 | . 222 70 Destroy 0b10 Robot/C 220 | . 160 60 Destroy 0b10 Robot/NC 5 | . 5 . Destroy Leader 40 | . 30 10 Successful Hack 27 | . 27 . Influence Decreases 248 | . 153 95 Entered New Map 34 | . . 34 Time Decay 154 | . 103 51 Lost Part 60 | . 50 10 Squads Dispatched 2 | . 2 . Investigation . | . . . Extermination . | . . . Reinforcement 2 | . 2 . Assault . | . . . Garrison . | . . . Intercept . | . . . Searches Triggered . | . . . Construction Impeded . | . . . Haulers Reinforced . | . . . Active Scanning Responses . | . . . Cargo Convoy Interrupts . | . . . Stealth | -11 -10 -10 --------- Run | Yrd Mat Sub Distress Signals 1 | . 1 . Communications Jammed . | . . . Distress Signals . | . . . Times Spotted 23 | . 18 5 Peak Tracking Total 4 | . 4 3 Tactical Retreats . | . . . Traps | -11 -10 -10 ------- Run | Yrd Mat Sub Traps Triggered 5 | . 3 2 Indirectly . | . . . Trap Hack Attempts . | . . . Triggered . | . . . Disarmed . | . . . Reprogrammed . | . . . Reused . | . . . Traps Extracted . | . . . Installed . | . . . Triggered . | . . . Machines | -11 -10 -10 ---------- Run | Yrd Mat Sub Machines Disabled . | . . . Max in Single Turn . | . . . Machines Repaired . | . . . Machines Dismantled . | . . . Machines Sabotaged . | . . . Overloaded Fab Kills . | . . . Hacking | -11 -10 -10 --------- Run | Yrd Mat Sub Machines Accessed 7 | . 7 . Terminals 5 | . 5 . Fabricators . | . . . Repair Stations 1 | . 1 . Recycling Units 1 | . 1 . Scanalyzers . | . . . Garrison Access . | . . . Total Hacks 13 | . 13 . Successful 8 | . 8 . Failed 5 | . 5 . Catastrophic 1 | . 1 . Database Lockouts . | . . . Manual 12 | . 12 . Terminals 10 | . 10 . Fabricators . | . . . Repair Stations 1 | . 1 . Recycling Units 2 | . 2 . Scanalyzers . | . . . Garrison Access . | . . . Terminal Hacks . | . . . Fabricator Hacks . | . . . Repair Station Hacks . | . . . Recycling Unit Hacks . | . . . Scanalyzer . | . . . Garrison Access Hacks . | . . . Unauthorized Hacks 8 | . 8 . Terminals 5 | . 5 . Assimilate 1 | . 1 . Botnet 4 | . 4 . Fabricators . | . . . Repair Stations 1 | . 1 . Mechanics 1 | . 1 . Recycling Units 2 | . 2 . Monitor 1 | . 1 . Reject 1 | . 1 . Scanalyzers . | . . . Garrison Access . | . . . Data Cores Recovered . | . . . Used . | . . . Hacking Detections 3 | . 3 . Full Trace Events . | . . . Feedback Events . | . . . Feedback Blocked . | . . . Robot Schematics Acquired . | . . . Robots Built . | . . . Authchips . | . . . Time . | . . . Total Robot Build Rating . | . . . Part Schematics Acquired . | . . . Parts Built . | . . . Authchips . | . . . Time . | . . . Total Part Build Rating . | . . . Parts Repaired . | . . . Time . | . . . Parts Recycled . | . . . Recycled Matter . | . . . Retrieved Matter . | . . . Retrieved Components . | . . . Parts Scanalyzed . | . . . Part Schematics Acquired . | . . . Parts Damaged . | . . . Bothacking | -11 -10 -10 ------------ Run | Yrd Mat Sub Used RIF Installer . | . . . Robots Hacked . | . . . Non-combat . | . . . Combat . | . . . Robot Hacks Applied . | . . . Relay Couplers Released . | . . . Fabnet Peak Effective % . | . . . Robots Rewired . | . . . Allies Hacked . | . . . Hacks Repelled . | . . . Allies | -11 -10 -10 -------- Run | Yrd Mat Sub Total Allies . | . . . Largest Group . | . . . Highest-Rated Group . | . . . Highest-Rated Ally . | . . . Total Orders . | . . . Ally Attacks . | . . . Total Damage . | . . . Kills . | . . . Allies Corrupted . | . . . Allies Melted . | . . . Intel | -11 -10 -10 ------- Run | Yrd Mat Sub Active Infowar (turns) 1054 | . 555 499 Structural 821 | . 322 499 Seismic 1054 | . 555 499 Robot Analysis Total . | . . . Derelict Logs Recovered . | . . . Drone Launches . | . . . Drone Recoveries . | . . . Exploration | -11 -10 -10 ------------- Run | Yrd Mat Sub Turns Passed 1545 | 49 997 499 Spaces Moved 874 | 33 487 354 Core 4 | 4 . . Treads . | . . . Legs 852 | 29 469 354 Wheels . | . . . Hover . | . . . Flight 18 | . 18 . Fastest Speed 50 | 50 50 120 Average Speed 119 | 111 119 120 Slowest Speed 130 | 120 130 120 Overloaded Moves . | . . . Propulsion Burnouts . | . . . Robots Hopped . | . . . Potential Cave-ins . | . . . Cave-ins Triggered . | . . . Exploration Rate (%) 38 | 3 81 32 Regions Visited 2 Branch Regions 1 Pre-discovered Areas . | . . . Known Exits Taken . | . . . Unknown Exits Taken 2 | 1 1 . Scrap Searched . | . . . Spaces Dug . | . . . Terrain Destroyed . | . . . Melee . | . . . Projectile . | . . . AOE . | . . . Terrain Rammed . | . . . Walls Destroyed . | . . . Machines Disabled . | . . . Actions | -11 -10 -10 --------- Run | Yrd Mat Sub Total 1279 | 42 849 388 Wait 310 | . 296 14 Move 872 | 32 486 354 Hop . | . . . Pick Up 6 | 3 3 . Fast Attach 12 | 5 7 . Attach 3 | 1 2 . Detach . | . . . Swap 8 | 1 7 . Drop 3 | . 3 . Fire 54 | . 34 20 Melee . | . . . Ram . | . . . Kick 11 | . 11 . Crush . | . . . Escape Stasis . | . . . Rewire . | . . . Trap . | . . . Miscellaneous . | . . . Route ------- -11/Scrapyard -10/Materials (discovered 4 exits: [*Mat x2] / [*Min] / [*Sub]) -10/Subcaves History --------- Turn | Location | Event 15 | -11/Scrapyard | Discovered new exit (range 16) 50 | -11/Scrapyard | Entered Materials 306 | -10/Materials | Build established: Mutant 484 | -10/Materials | Discovered new exit (range 15) 599 | -10/Materials | Discovered new exit (range 15) 607 | -10/Materials | Discovered new exit (range 9) 668 | -10/Materials | Discovered new exit (range 10) 945 | -10/Materials | Core integrity fell below 50% 998 | -10/Materials | Lost 3 parts (1p1n1w) 1047 | -10/Materials | Entered Subcaves 1048 | -10/Subcaves | Approached by a straggling Scientist 1276 | -10/Subcaves | Core integrity fell below 20% 1292 | -10/Subcaves | A swath of the cavern ceiling suddenly collapsed 1314 | -10/Subcaves | Build established: Scavenger-Mutant 1546 | -10/Subcaves | Destroyed by RX-XLD(R) with Subdweller Beam Cannon Last Messages --------------- An expanding cloud of shrapnel blasts out in all directions. 0O-PHK(c): "I think it's somewhere southwest of here" 0O-PHK(c): "I think it's somewhere south of here" S-10 Pest destroyed. H|IUOEIYSFLFJUJ JOFNQKF5F72FT Subatomizers dissect the Flight Unit. Flight Unit fries itself beyond repair. 0O-PHK(c): "I think it's somewhere south of here" Flight Unit fries itself beyond repair. S-10 Pest destroyed. Lgt. Assault Rifle fries itself beyond repair. Acquired 18 matter. Subatomizers dissect the Flight Unit. Acquired 29 matter. Flight Unit fries itself beyond repair. Aluminum Leg destroyed. Map ----- +----------------------------------------------------+ | ?????????????????????????????????????????????????? | | ?????????????????????????????????????????????????? | | ?????????????????????????????????????????????????? | | ?????????????????????????????????????????????????? | | ?????????????????????????????????????????????????? | | ?????????????????????????????????????????????????? | | ?????????????????????????????????????????????????? | | ?????????????????????????????????????????????????? | | ???????????????????### ??????????????????????????? | | ???????????????????### ??????????????????????????? | | ???????????????????## ??????????????????????????? | | ???????????????????? ?????????????????????????? | | ????????????????????"" """"##???????????????????? | | ??????????????###???""R """"##???????????????????? | | ?????????????####""""" """"##???????????????????? | | ?????????????### """"" #???????????????????? | | ?????????????## " ?????????????????????? | | ?????????????# ?????????????????????? | | ????????????## ?? #?????? #???????????? | | ????????????## ?? ## ######## ##???????????? | | ????????????## ## ######## ####?????????? | | ????????????## # ####? "????? | | ????????????## """"? "???? | | ????????????## ## """"? ??? | | ????????????## ???????### #""""" ???? | | ????????????????????? ###@ c #####???"# #?## | | ???????????????? ### #####???# ##?## | | ??????????????? #####???## ##?## | | ??????????????? ##??### ###?## | | ??????????????? ####### ###### | | ???????????????? ###### ##### | | ???????????????? ###### ##### ##### ### | | ?????????????????####### ###### ##### | | ?????????????????????? ###### ##?## | | ?????????????####?? ##### ###### # | | ?????????????###### ## ###### ###### # | | ?????????????## ######### #### | | ????????????### ### ## # # | | ????????????### ### | | ????????????## ## #### | | ????????????## ## ## ####### | | ????????????### ### ############ ## | | ????????????##### ### #######???## ## | | ?????????????##### ### ###???????## ### | | ?????????????##### ### ###???????###### | | ?????????????### ### ##???????##### | | ?????????????## #### ###??????????"## | | ?????????????## ####### ####?????????? #" | | ????????????### ####### ####????????????? | | ????????????### ## ###??## ####??????????????" | +----------------------------------------------------+ Best States ------------- Heat Dissipation 25 Energy Generation 10 Energy Capacity 250 Matter Stores 300 Matter Capacity 300 Sight Range 16 Terrain Scan Density 10 Evasion (%) 55 Item Schematics ----------------- None Robot Schematics ------------------ None Fabricated ------------ Nothing Repaired ---------- Nothing Alien Tech Used ----------------- None Achievements -------------- Quantum Hacking Challenges ------------ None Game ------ Seed ThermalSpikedStick Manual? 0 Play Time 00:13:09 Cumulative 17.2 hours Start 2025.08.25 @ 22:52:12 End 2025.08.25 @ 23:03:09 Sessions 1 Manual Loads 0 Difficulty Rogue Special Mode None Game No. 15 Rogue 15 Adventurer 0 Explorer 0 Win Type - Total 0 Types 0/0/0/0/0/0/0/0/0/0 Lore% 20 Gallery% 25 Achievement% 29 Wizard Run 0 Options --------- Layout 1 ASCII 0 Keyboard 0 Movement Numpad Keybinds 0 Fullscreen 1 Font 32/SmallcapsGlow Map View 50x35 Zoom Use 0% Tactical HUD 0 Map Filters NONE Filters NONE Steam 1 RUN: cb8864a6-e31f-4074-aba3-4bde2a2f4be9